fUSD/lending_fUSD_20240104
["ID","MTS","AMOUNT","RATE_DAILY","PERIOD"]
[310144118,1704383471309,-500.0,0.00033698,2]
[310144119,1704383471319,-1670.1,0.00033698,2]
[310144120,1704383471329,-500.0,0.00033698,2]
[310144121,1704383471339,-912.27,0.00033698,2]
[310144122,1704383471349,-500.0,0.00033698,2]
[310144123,1704383471358,-500.0,0.00033698,2]
[310144124,1704383471370,-500.0,0.00033698,2]
[310144125,1704383471381,-1474.82,0.00033698,2]
[310144126,1704383471391,-880.31,0.00033698,2]
[310144127,1704383471401,-500.0,0.00033698,2]
[310144128,1704383471411,-958.09,0.00033698,2]
[310144129,1704383471421,-1366.5,0.00033698,2]
[310144130,1704383471431,-500.0,0.00033698,2]
[310144131,1704383471442,-500.0,0.00033698,2]
[310144132,1704383471650,-500.0,0.00033698,2]
[310144133,1704383471661,-574.97,0.00033698,2]
[310144134,1704383471671,-937.71,0.00033698,2]
[310144135,1704383471680,-500.0,0.00033698,2]
[310144136,1704383471690,-633.81,0.00033698,2]
[310144137,1704383471699,-937.76,0.00033698,2]
[310144138,1704383471708,-702.39,0.00033698,2]
[310144139,1704383471717,-500.0,0.00033698,2]
[310144140,1704383471727,-500.0,0.00033698,2]
[310144141,1704383471736,-865.04,0.00033698,2]
[310144142,1704383471746,-636.93,0.00033698,2]
[310144143,1704383471755,-500.0,0.00033698,2]
[310144144,1704383471765,-819.06,0.00033698,2]
[310144145,1704383471774,-513.53654444,0.00033698,2]
[310144146,1704383471784,-500.0,0.00033698,2]
[310144147,1704383471794,-500.0,0.00033698,2]
[310144148,1704383471804,-1417.4,0.00033698,2]
[310144149,1704383471813,-500.0,0.00033698,2]
[310144150,1704383471823,-500.0,0.00033698,2]
[310144151,1704383471835,-500.0,0.00033698,2]
[310144152,1704383471845,-542.64,0.00033698,2]
[310144153,1704383471854,-2014.53,0.00033698,2]
[310144154,1704383471863,-876.9,0.00033698,2]
[310144155,1704383471874,-503.36822534,0.00033698,2]
[310144156,1704383471884,-500.0,0.00033698,2]
[310144157,1704383471894,-500.0,0.00033698,2]
[310144158,1704383471904,-500.0,0.00033698,2]
[310144159,1704383471914,-514.44,0.00033698,2]
[310144160,1704383471923,-572.05,0.00033698,2]
[310144161,1704383471933,-1000.0,0.00033698,2]
[310144162,1704383471942,-500.0,0.00033698,2]
[310144163,1704383471952,-500.0,0.00033698,2]
[310144164,1704383471961,-1205.37,0.00033698,2]
[310144165,1704383471971,-500.0,0.00033698,2]
[310144166,1704383471981,-500.0,0.00033698,2]
[310144167,1704383471991,-500.0,0.00033698,2]
[310144168,1704383472002,-500.0,0.00033698,2]
[310144169,1704383472012,-500.0,0.00033698,2]
[310144170,1704383472026,-500.0,0.00033698,2]
[310144171,1704383472041,-674.61,0.00033698,2]
[310144172,1704383472052,-500.0,0.00033698,2]
[310144173,1704383472063,-500.0,0.00033698,2]
[310144174,1704383472074,-1957.4,0.00033698,2]
[310144175,1704383472084,-500.0,0.00033698,2]
[310144176,1704383472094,-500.0,0.00033698,2]
[310144177,1704383472105,-500.0,0.00033698,2]
[310144178,1704383472117,-695.0,0.00033698,2]
[310144179,1704383472127,-500.0,0.00033698,2]
[310144180,1704383472138,-500.0,0.00033698,2]
[310144181,1704383472148,-500.0,0.00033698,2]
[310144182,1704383472158,-500.0,0.00033698,2]
[310144183,1704383472168,-493.95546521,0.00033698,2]
[310144184,1704383472179,-500.0,0.00033698,2]
[310144185,1704383472190,-500.0,0.00033698,2]
[310144186,1704383472200,-803.55,0.00033698,2]
[310144187,1704383472211,-500.0,0.00033698,2]
[310144188,1704383472220,-500.0,0.00033698,2]
[310144189,1704383472230,-500.0,0.00033698,2]
[310144190,1704383472240,-500.0,0.00033698,2]
[310144191,1704383472250,-882.03,0.00033698,2]
[310144192,1704383472261,-815.47,0.00033698,2]
[310144193,1704383472271,-500.0,0.00033698,2]
[310144194,1704383472281,-500.0,0.00033698,2]
[310144195,1704383472291,-500.0,0.00033698,2]
[310144196,1704383472301,-500.0,0.00033698,2]
[310144197,1704383472311,-500.0,0.00033698,2]
[310144198,1704383472322,-1914.74,0.00033698,2]
[310144199,1704383472333,-500.0,0.00033698,2]
[310144200,1704383472343,-500.0,0.00033698,2]
[310144201,1704383472353,-548.70369907,0.00033698,2]
[310144202,1704383472363,-574.34,0.00033698,2]
[310144203,1704383472374,-500.0,0.00033698,2]
[310144204,1704383472383,-500.0,0.00033698,2]
[310144205,1704383472394,-500.0,0.00033698,2]
[310144206,1704383472404,-944.72,0.00033698,2]
[310144207,1704383472415,-500.0,0.00033698,2]
[310144208,1704383472425,-982.79,0.00033698,2]
[310144209,1704383472435,-500.0,0.00033698,2]
[310144210,1704383472445,-500.0,0.00033698,2]
[310144211,1704383472456,-804.81,0.00033698,2]
[310144212,1704383472466,-500.0,0.00033698,2]
[310144213,1704383472476,-1565.08,0.00033698,2]
[310144214,1704383472486,-500.0,0.00033698,2]
[310144215,1704383472495,-959.87,0.00033698,2]
[310144216,1704383472505,-217.7,0.00033698,2]
[310144217,1704383472515,-500.0,0.00033698,2]
[310144218,1704383472525,-503.94720532,0.00033698,2]
[310144219,1704383472534,-744.98,0.00033698,2]
[310144220,1704383472544,-167.63438717,0.00033698,2]
[310144221,1704383472553,-500.0,0.00033698,2]
[310144222,1704383472563,-700.63,0.00033698,2]
[310144223,1704383472573,-885.49,0.00033698,2]
[310144224,1704383472583,-500.0,0.00033698,2]
[310144225,1704383472592,-500.0,0.00033698,2]
[310144226,1704383472602,-1410.46,0.00033698,2]
[310144227,1704383472611,-500.0,0.00033698,2]
[310144228,1704383472623,-500.0,0.00033698,2]
[310144229,1704383472632,-500.0,0.00033698,2]
[310144230,1704383472642,-957.51,0.00033698,2]
[310144231,1704383472652,-500.0,0.00033698,2]
[310144232,1704383472662,-500.0,0.00033698,2]
[310144233,1704383472672,-500.0,0.00033698,2]
[310144234,1704383472681,-699.39,0.00033698,2]
[310144235,1704383472691,-522.61218059,0.00033698,2]
[310144236,1704383472701,-500.0,0.00033698,2]
[310144237,1704383472711,-1991.4,0.00033698,2]
[310144238,1704383472721,-500.0,0.00033698,2]
[310144239,1704383472731,-500.0,0.00033698,2]
[310144240,1704383472740,-500.0,0.00033698,2]
[310144241,1704383472750,-500.0,0.00033698,2]
[310144242,1704383472759,-500.0,0.00033698,2]
[310144243,1704383472769,-192.66624487,0.00033698,2]
[310144244,1704383472778,-500.0,0.00033698,2]
[310144245,1704383472788,-500.0,0.00033698,2]
[310144246,1704383472797,-500.0,0.00033698,2]
[310144247,1704383472807,-2780.73,0.00033698,2]
[310144248,1704383472816,-500.0,0.00033698,2]
[310144249,1704383472826,-564.47,0.00033698,2]
[310144250,1704383472837,-500.0,0.00033698,2]
[310144251,1704383472847,-1394.86,0.00033698,2]
[310144252,1704383472857,-1775.83,0.00033698,2]
[310144253,1704383472866,-500.0,0.00033698,2]
[310144254,1704383472879,-500.0,0.00033698,2]
[310144255,1704383472889,-500.0,0.00033698,2]
[310144256,1704383472898,-500.0,0.00033698,2]
[310144257,1704383472908,-652.78,0.00033698,2]
[310144258,1704383472918,-500.0,0.00033698,2]
[310144259,1704383472929,-500.0,0.00033698,2]
[310144260,1704383472938,-619.2,0.00033698,2]
[310144261,1704383472948,-1405.72,0.00033698,2]
[310144262,1704383472958,-500.0,0.00033698,2]
[310144263,1704383472968,-500.0,0.00033698,2]
[310144264,1704383472977,-597.63,0.00033698,2]
[310144265,1704383472987,-1124.88,0.00033698,2]
[310144266,1704383472997,-500.0,0.00033698,2]
[310144267,1704383473007,-1115.87,0.00033698,2]
[310144268,1704383473017,-515.68373264,0.00033698,2]
[310144269,1704383473027,-500.0,0.00033698,2]
[310144270,1704383473037,-1054.91,0.00033698,2]
[310144271,1704383473047,-524.05,0.00033698,2]
[310144272,1704383473057,-500.0,0.00033698,2]
[310144273,1704383473067,-559.91,0.00033698,2]
[310144274,1704383473076,-500.0,0.00033698,2]
[310144275,1704383473086,-500.0,0.00033698,2]
[310144276,1704383473096,-564.33,0.00033698,2]
[310144277,1704383473105,-604.52532085,0.00033698,2]
[310144278,1704383473116,-685.63,0.00033698,2]
[310144279,1704383473126,-1086.48,0.00033698,2]
[310144280,1704383473136,-950.11,0.00033698,2]
[310144281,1704383473145,-500.0,0.00033698,2]
[310144282,1704383473155,-500.0,0.00033698,2]
[310144283,1704383473165,-944.61,0.00033698,2]
[310144284,1704383473175,-500.0,0.00033698,2]
[310144285,1704383473185,-1757.32,0.00033698,2]
[310144286,1704383473195,-2621.71,0.00033698,2]
[310144287,1704383473204,-500.0,0.00033698,2]
[310144288,1704383473214,-1401.22,0.00033698,2]
[310144289,1704383473225,-500.0,0.00033698,2]
[310144290,1704383473235,-500.0,0.00033698,2]
[310144291,1704383473245,-637.66501474,0.00033698,2]
[310144292,1704383473255,-500.0,0.00033698,2]
[310144293,1704383473266,-1732.27,0.00033698,2]
[310144294,1704383473276,-500.0,0.00033698,2]
[310144295,1704383473286,-639.42,0.00033698,2]
[310144296,1704383473299,-1256.69,0.00033698,2]
[310144297,1704383473309,-500.0,0.00033698,2]
[310144298,1704383473318,-1094.07,0.00033698,2]
[310144299,1704383473335,-500.0,0.00033698,2]
[310144300,1704383473345,-500.0,0.00033698,2]
[310144301,1704383473357,-274.57167549,0.00033698,2]
[310144302,1704383473372,-500.0,0.00033698,2]
[310144303,1704383473381,-1570.56,0.00033698,2]
[310144304,1704383473392,-739.39,0.00033698,2]
[310144305,1704383473402,-500.0,0.00033698,2]
[310144306,1704383473412,-529.45,0.00033698,2]
[310144307,1704383473424,-1059.98,0.00033698,2]
[310144308,1704383473435,-1294.14,0.00033698,2]
[310144309,1704383473445,-169.13561993,0.00033698,2]
[310144310,1704383473455,-500.0,0.00033698,2]
[310144311,1704383473465,-500.0,0.00033698,2]
[310144312,1704383473474,-574.31,0.00033698,2]
[310144313,1704383473489,-500.0,0.00033698,2]
[310144314,1704383473499,-1661.09,0.00033698,2]
[310144315,1704383473508,-500.0,0.00033698,2]
[310144316,1704383473518,-582.97,0.00033698,2]
[310144317,1704383473527,-1488.44,0.00033698,2]
[310144318,1704383473536,-576.77,0.00033698,2]
[310144319,1704383473545,-500.0,0.00033698,2]
[310144320,1704383473557,-879.94,0.00033698,2]
[310144321,1704383473565,-500.0,0.00033698,2]
[310144322,1704383473575,-539.04,0.00033698,2]
[310144323,1704383473584,-1530.35,0.00033698,2]
[310144324,1704383473593,-1484.45,0.00033698,2]
[310144325,1704383473603,-500.0,0.00033698,2]
[310144326,1704383473612,-512.24,0.00033698,2]
[310144327,1704383473625,-1403.56,0.00033698,2]
[310144328,1704383473635,-545.95,0.00033698,2]
[310144329,1704383473644,-500.0,0.00033698,2]
[310144330,1704383473654,-611.8,0.00033698,2]
[310144331,1704383473663,-601.29,0.00033698,2]
[310144332,1704383473673,-630.38,0.00033698,2]
[310144333,1704383473683,-2049.38,0.00033698,2]
[310144334,1704383473692,-500.0,0.00033698,2]
[310144335,1704383473702,-1841.82,0.00033698,2]
[310144336,1704383473711,-500.0,0.00033698,2]
[310144337,1704383473721,-500.0,0.00033698,2]
[310144338,1704383473731,-500.0,0.00033698,2]
[310144339,1704383473740,-1046.26,0.00033698,2]
[310144340,1704383473750,-951.22,0.00033698,2]
[310144341,1704383473760,-1497.34,0.00033698,2]
[310144342,1704383473769,-735.25,0.00033698,2]
[310144343,1704383473785,-527.14,0.00033698,2]
[310144344,1704383473795,-1733.0,0.00033698,2]
[310144345,1704383473813,-643.52,0.00033698,2]
[310144346,1704383473825,-500.0,0.00033698,2]
[310144347,1704383473836,-822.39,0.00033698,2]
[310144348,1704383473850,-500.0,0.00033698,2]
[310144349,1704383473861,-2670.57,0.00033698,2]
[310144350,1704383473874,-500.0,0.00033698,2]
[310144351,1704383473884,-500.0,0.00033698,2]
[310144352,1704383473894,-500.0,0.00033698,2]
[310144353,1704383473904,-1166.26,0.00033698,2]
[310144354,1704383473914,-3284.99,0.00033698,2]
[310144355,1704383473923,-500.0,0.00033698,2]
[310144356,1704383473937,-971.98,0.00033698,2]
[310144357,1704383473947,-500.0,0.00033698,2]
[310144358,1704383473956,-500.0,0.00033698,2]
[310144359,1704383473966,-1694.73,0.00033698,2]
[310144360,1704383473975,-685.61,0.00033698,2]
[310144361,1704383473985,-2075.81,0.00033698,2]
[310144362,1704383473994,-500.0,0.00033698,2]
[310144363,1704383474005,-1125.46,0.00033698,2]
[310144364,1704383474015,-526.4,0.00033698,2]
[310144365,1704383474025,-500.0,0.00033698,2]
[310144366,1704383474036,-1396.04,0.00033698,2]
[310144367,1704383474046,-500.0,0.00033698,2]
[310144368,1704383474057,-1060.35,0.00033698,2]
[310144369,1704383474066,-540.44,0.00033698,2]
[310144370,1704383474076,-3215.96,0.00033698,2]
[310144371,1704383474086,-500.0,0.00033698,2]
[310144372,1704383474096,-781.26,0.00033698,2]
[310144373,1704383474106,-558.12,0.00033698,2]
[310144374,1704383474117,-500.0,0.00033698,2]
[310144375,1704383474127,-1237.67,0.00033698,2]
[310144376,1704383474137,-1191.58,0.00033698,2]
[310144377,1704383474146,-525.09,0.00033698,2]
[310144378,1704383474156,-1747.39,0.00033698,2]
[310144379,1704383474166,-236.02703858,0.00033698,2]
[310144380,1704383474175,-1747.57,0.00033698,2]
[310144381,1704383474184,-4274.46,0.00033698,2]
[310144382,1704383474194,-500.0,0.00033698,2]
[310144383,1704383474204,-2793.34,0.00033698,2]
[310144384,1704383474213,-973.72,0.00033698,2]
[310144385,1704383474222,-181.56,0.00033698,2]
[310144386,1704383474232,-500.0,0.00033698,2]
[310144387,1704383474242,-1118.87,0.00033698,2]
[310144388,1704383474251,-684.1,0.00033698,2]
[310144389,1704383474261,-500.0,0.00033698,2]
[310144390,1704383474271,-500.0,0.00033698,2]
[310144391,1704383474280,-521.83,0.00033698,2]
[310144392,1704383474290,-500.0,0.00033698,2]
[310144393,1704383474298,-676.82,0.00033698,2]
[310144394,1704383474315,-500.0,0.00033698,2]
[310144395,1704383474324,-2388.72,0.00033698,2]
[310144396,1704383474334,-1361.8,0.00033698,2]
[310144397,1704383474349,-500.0,0.00033698,2]
[310144398,1704383474358,-998.02,0.00033698,2]
[310144399,1704383474368,-500.0,0.00033698,2]
[310144400,1704383474377,-699.11,0.00033698,2]
[310144401,1704383474387,-500.0,0.00033698,2]
[310144402,1704383474407,-522.55,0.00033698,2]
[310144403,1704383474416,-841.57,0.00033698,2]
[310144404,1704383474425,-2977.6,0.00033698,2]
[310144405,1704383474445,-658.31,0.00033698,2]
[310144406,1704383474455,-612.09,0.00033698,2]
[310144407,1704383474464,-193.86694722,0.00033698,2]
[310144408,1704383474475,-1411.68,0.00033698,2]
[310144409,1704383474484,-998.22,0.00033698,2]
[310144410,1704383474494,-1262.99,0.00033698,2]
[310144411,1704383474504,-4333.35,0.00033698,2]
[310144412,1704383474514,-500.0,0.00033698,2]
[310144413,1704383474523,-550.75,0.00033698,2]
[310144414,1704383474533,-211.76847681,0.00033698,2]
[310144415,1704383474543,-706.18,0.00033698,2]
[310144416,1704383474552,-667.37,0.00033698,2]
[310144417,1704383474562,-500.0,0.00033698,2]
[310144418,1704383474572,-3014.21,0.00033698,2]
[310144419,1704383474582,-1018.2,0.00033698,2]
[310144420,1704383474591,-532.17512413,0.00033698,2]
[310144421,1704383474601,-693.16,0.00033698,2]
[310144422,1704383474610,-1362.23,0.00033698,2]
[310144423,1704383474621,-2995.33,0.00033698,2]
[310144424,1704383474631,-500.0,0.00033698,2]
[310144425,1704383474640,-473.76,0.00033698,2]
[310144426,1704383474874,-597.48,0.00033698,2]
[310144427,1704383474886,-500.0,0.00033698,2]
[310144428,1704383474895,-854.33,0.00033698,2]
[310144429,1704383474905,-1324.64,0.00033698,2]
[310144430,1704383474915,-816.81,0.00033698,2]
[310144431,1704383474926,-500.0,0.00033698,2]
[310144432,1704383474935,-500.0,0.00033698,2]
[310144433,1704383474945,-599.52,0.00033698,2]
[310144434,1704383474955,-500.0,0.00033698,2]
[310144435,1704383474965,-1309.57,0.00033698,2]
[310144436,1704383474974,-555.41,0.00033698,2]
[310144437,1704383474987,-500.0,0.00033698,2]
[310144438,1704383474997,-1268.47,0.00033698,2]
[310144439,1704383475007,-1030.82,0.00033698,2]
[310144440,1704383475017,-8961.73,0.00033698,2]
[310144441,1704383475033,-1547.75,0.00033698,2]
[310144442,1704383475043,-832.48,0.00033698,2]
[310144443,1704383475052,-2868.4,0.00033698,2]
[310144444,1704383475061,-500.0,0.00033698,2]
[310144445,1704383475070,-500.0,0.00033698,2]
[310144446,1704383475080,-1262.46,0.00033698,2]
[310144447,1704383475090,-500.0,0.00033698,2]
[310144448,1704383475099,-500.0,0.00033698,2]
[310144449,1704383475109,-6572.59,0.00033698,2]
[310144450,1704383475120,-593.34,0.00033698,2]
[310144451,1704383475129,-569.73,0.00033698,2]
[310144452,1704383475138,-4284.47,0.00033698,2]
[310144453,1704383475148,-500.0,0.00033698,2]
[310144454,1704383475157,-11824.09,0.00033698,2]
[310144455,1704383475167,-918.99,0.00033698,2]
[310144456,1704383475176,-500.0,0.00033698,2]
[310144457,1704383475185,-1528.9,0.00033698,2]
[310144458,1704383475195,-839.12,0.00033698,2]
[310144459,1704383475205,-500.0,0.00033698,2]
[310144460,1704383475214,-626.51,0.00033698,2]
[310144461,1704383475224,-512.9,0.00033698,2]
[310144462,1704383475234,-815.35,0.00033698,2]
[310144463,1704383475247,-722.14,0.00033698,2]
[310144464,1704383475257,-1946.58,0.00033698,2]
[310144465,1704383475266,-988.65,0.00033698,2]
[310144466,1704383475276,-25969.53,0.00033698,2]
[310144467,1704383475285,-2402.27,0.00033698,2]
[310144468,1704383475295,-500.0,0.00033698,2]
[310144469,1704383475305,-2320.41,0.00033698,2]
[310144470,1704383475314,-500.0,0.00033698,2]
[310144471,1704383475325,-631.59,0.00033698,2]
[310144472,1704383475334,-871.23,0.00033698,2]
[310144473,1704383475344,-1013.95,0.00033698,2]
[310144474,1704383475357,-14205.53,0.00033698,2]
[310144475,1704383475368,-1593.12,0.00033698,2]
[310144476,1704383475381,-835.86,0.00033698,2]
[310144477,1704383475391,-500.0,0.00033698,2]
[310144478,1704383475400,-586.95,0.00033698,2]
[310144479,1704383475421,-1058.98,0.00033698,2]
[310144480,1704383475431,-1333.9,0.00033698,2]
[310144481,1704383475447,-500.0,0.00033698,2]
[310144482,1704383475461,-1481.66,0.00033698,2]
[310144483,1704383475473,-500.0,0.00033698,2]
[310144484,1704383475487,-684.9,0.00033698,2]
[310144485,1704383475498,-500.0,0.00033698,2]
[310144486,1704383475507,-10274.33,0.00033698,2]
[310144487,1704383475533,-1140.38,0.00033698,2]
[310144488,1704383475543,-596.7,0.00033698,2]
[310144489,1704383475561,-500.0,0.00033698,2]
[310144490,1704383475571,-5311.22,0.00033698,2]
[310144491,1704383475585,-500.0,0.00033698,2]
[310144492,1704383475595,-1489.0,0.00033698,2]
[310144493,1704383475605,-500.0,0.00033698,2]
[310144494,1704383475615,-1020.8,0.00033698,2]
[310144495,1704383475626,-500.0,0.00033698,2]
[310144496,1704383475636,-708.19,0.00033698,2]
[310144497,1704383475646,-500.0,0.00033698,2]
[310144498,1704383475656,-1641.33,0.00033698,2]
[310144499,1704383475665,-1563.54,0.00033698,2]
[310144500,1704383475675,-4689.3,0.00033698,2]
[310144501,1704383475686,-3501.75,0.00033698,2]
[310144502,1704383475696,-1821.71,0.00033698,2]
[310144503,1704383475706,-581.11,0.00033698,2]
[310144504,1704383475715,-1520.64,0.00033698,2]
[310144505,1704383475725,-917.4,0.00033698,2]
[310144506,1704383475735,-500.0,0.00033698,2]
[310144507,1704383475745,-1132.36,0.00033698,2]
[310144508,1704383475755,-980.64,0.00033698,2]
[310144509,1704383475765,-611.97,0.00033698,2]
[310144510,1704383475775,-911.8,0.00033698,2]
[310144511,1704383475785,-512.76,0.00033698,2]
[310144512,1704383475794,-502.97258805,0.00033698,2]
[310144513,1704383475804,-500.0,0.00033698,2]
[310144514,1704383475814,-500.0,0.00033698,2]
[310144515,1704383475823,-611.41,0.00033698,2]
[310144516,1704383475834,-3660.07,0.00033698,2]
[310144517,1704383475844,-758.21,0.00033698,2]
[310144518,1704383475853,-4379.2,0.00033698,2]
[310144519,1704383475863,-741.69,0.00033698,2]
[310144520,1704383475874,-2326.77,0.00033698,2]
[310144521,1704383475884,-1104.09,0.00033698,2]
[310144522,1704383475894,-500.0,0.00033698,2]
[310144523,1704383475903,-500.0,0.00033698,2]
[310144524,1704383475913,-1962.91,0.00033698,2]
[310144525,1704383475923,-1792.29,0.00033698,2]
[310144526,1704383475933,-413.00414072,0.00033698,2]
[310144527,1704383475943,-20208.69,0.00033698,2]
[310144528,1704383475953,-1258.81,0.00033698,2]
[310144529,1704383475963,-500.0,0.00033698,2]
[310144530,1704383475973,-500.0,0.00033698,2]
[310144531,1704383475983,-765.42,0.00033698,2]
[310144532,1704383475994,-3848.58,0.00033698,2]
[310144533,1704383476004,-2574.21,0.00033698,2]
[310144534,1704383476013,-879.94,0.00033698,2]
[310144535,1704383476023,-764.06,0.00033698,2]
[310144536,1704383476035,-500.0,0.00033698,2]
[310144537,1704383476045,-500.0,0.00033698,2]
[310144538,1704383476054,-500.0,0.00033698,2]
[310144539,1704383476064,-2186.2,0.00033698,2]
[310144540,1704383476074,-8578.01,0.00033698,2]
[310144541,1704383476084,-706.9,0.00033698,2]
[310144542,1704383476093,-500.0,0.00033698,2]
[310144543,1704383476103,-1367.02,0.00033698,2]
[310144544,1704383476113,-500.0,0.00033698,2]
[310144545,1704383476124,-6759.03,0.00033698,2]
[310144546,1704383476134,-500.0,0.00033698,2]
[310144547,1704383476144,-2234.12,0.00033698,2]
[310144548,1704383476153,-7989.34,0.00033698,2]
[310144549,1704383476163,-571.79,0.00033698,2]
[310144550,1704383476172,-500.0,0.00033698,2]
[310144551,1704383476181,-886.97,0.00033698,2]
[310144552,1704383476191,-1134.35,0.00033698,2]
[310144553,1704383476200,-582.52,0.00033698,2]
[310144554,1704383476210,-3268.96,0.00033698,2]
[310144555,1704383476220,-1409.66,0.00033698,2]
[310144556,1704383476229,-500.0,0.00033698,2]
[310144557,1704383476239,-5952.87,0.00033698,2]
[310144558,1704383476250,-1108.08,0.00033698,2]
[310144559,1704383476260,-734.31,0.00033698,2]
[310144560,1704383476271,-617.19,0.00033698,2]
[310144561,1704383476281,-500.0,0.00033698,2]
[310144562,1704383476292,-500.0,0.00033698,2]
[310144563,1704383476302,-1176.29,0.00033698,2]
[310144564,1704383476312,-211.41200871,0.00033698,2]
[310144565,1704383476324,-593.47,0.00033698,2]
[310144566,1704383476334,-500.0,0.00033698,2]
[310144567,1704383476344,-3760.93,0.00033698,2]
[310144568,1704383476355,-500.0,0.00033698,2]
[310144569,1704383476366,-2563.17,0.00033698,2]
[310144570,1704383476382,-648.96,0.00033698,2]
[310144571,1704383476393,-735.99,0.00033698,2]
[310144572,1704383476404,-727.54,0.00033698,2]
[310144573,1704383476414,-912.37,0.00033698,2]
[310144574,1704383476423,-1710.93,0.00033698,2]
[310144575,1704383476433,-797.16,0.00033698,2]
[310144576,1704383476443,-500.0,0.00033698,2]
[310144577,1704383476453,-500.0,0.00033698,2]
[310144578,1704383476463,-1123.81,0.00033698,2]
[310144579,1704383476474,-1782.07,0.00033698,2]
[310144580,1704383476483,-3505.81,0.00033698,2]
[310144581,1704383476493,-526.11,0.00033698,2]
[310144582,1704383476503,-6058.41,0.00033698,2]
[310144583,1704383476514,-743.76,0.00033698,2]
[310144584,1704383476524,-813.13,0.00033698,2]
[310144585,1704383476534,-500.0,0.00033698,2]
[310144586,1704383476544,-1111.68,0.00033698,2]
[310144587,1704383476554,-500.0,0.00033698,2]
[310144588,1704383476564,-633.13,0.00033698,2]
[310144589,1704383476573,-2411.49,0.00033698,2]
[310144590,1704383476583,-546.80853336,0.00033698,2]
[310144591,1704383476592,-500.0,0.00033698,2]
[310144592,1704383476602,-1980.1,0.00033698,2]
[310144593,1704383476612,-766.75,0.00033698,2]
[310144594,1704383476626,-2763.55,0.00033698,2]
[310144595,1704383476636,-711.0,0.00033698,2]
[310144596,1704383476646,-500.0,0.00033698,2]
[310144597,1704383476656,-500.0,0.00033698,2]
[310144598,1704383476665,-1787.6,0.00033698,2]
[310144599,1704383476675,-500.0,0.00033698,2]
[310144600,1704383476685,-500.0,0.00033698,2]
[310144601,1704383476694,-1042.72,0.00033698,2]
[310144602,1704383476704,-1394.66,0.00033698,2]
[310144603,1704383476713,-786.66,0.00033698,2]
[310144604,1704383476722,-500.0,0.00033698,2]
[310144605,1704383476731,-500.0,0.00033698,2]
[310144606,1704383476741,-500.0,0.00033698,2]
[310144607,1704383476750,-739.91,0.00033698,2]
[310144608,1704383476760,-1762.55,0.00033698,2]
[310144609,1704383476769,-500.0,0.00033698,2]
[310144610,1704383476779,-1801.4,0.00033698,2]
[310144611,1704383476789,-587.29,0.00033698,2]
[310144612,1704383476798,-2106.94,0.00033698,2]
[310144613,1704383476808,-434.14331544,0.00033698,2]
[310144614,1704383476818,-690.38,0.00033698,2]
[310144615,1704383476828,-6835.67,0.00033698,2]
[310144616,1704383476838,-500.0,0.00033698,2]
[310144617,1704383476848,-2355.23,0.00033698,2]